Cogmind - Beta 15 *** ADVENTURER MODE // 2025.09.27 @ 18:27:57 Player: Olexender Result: Destroyed by Striker with Plasma Lance Performance ------------- Evolutions (6) 3000 Regions Visited (13) 2600 Robots Destroyed (167) 835 Value Destroyed (6998) 6998 Prototype IDs (10) 200 Alien Tech Used (0) 0 Bonus (1653) 1653 TOTAL SCORE: 15286 Bonus ------- Pacifist 200 Follower Combat Kills 181 Entered DSFs 1000 Acquired ECA 300 Friendly Fire -28 Cogmind --------- Core Integrity 0/1150 Matter 300/300 Energy 100/100 System Corruption 1% Temperature Cool (0) Movement Core (50) Location -4/Factory Parts ------- > --- POWER (2) -------- (None) > --- PROPULSION (7) --- (None) > --- UTILITY (7) ------ (None) > --- WEAPON (3) ------- (None) > --- INVENTORY (5) ---- High-capacity Storage Unit Advanced Energy Well (500) Matter Compressor (250) Structural Scanner Structural Scanner Peak State ------------ > --- POWER ------------ Light Neutrino Core Antimatter Reactor > --- PROPULSION ------- Thunder Leg Myomer Leg Myomer Leg Myomer Leg Myomer Leg Myomer Leg Myomer Leg > --- UTILITY ---------- Improved Cooling System High-capacity Storage Unit Encrypted Comm Array ECM Suite Advanced Reaction Control System Dynamic Insulation System Improved System Restoration Module > --- WEAPON ----------- Heavy Phase Cannon Slug Cannon Heavy Gauss Cannon > --- INVENTORY -------- Neutrino Core Micro Fission Core Thunder Leg Thunder Leg Thunder Leg Thunder Leg Thunder Leg Advanced Power Amplifier Improved Cooling System Improved Cooling System Advanced Energy Well Matter Compressor Hardened Medium Armor Plating Hardened Medium Armor Plating Improved System Restoration Module Advanced Plasma Cannon Slug Cannon Rocket Launcher Power Maul Katana [Rating: 116] Favorites ----------- Power Micro Fission Core Engine Heavy Deuterium Engine Power Core Micro Fission Core Reactor Antimatter Reactor Propulsion Improved Titanium Leg Leg Improved Titanium Leg Wheel Armored Huge Wheel Hover Unit Antigrav System Utility High-capacity Storage Unit Device Encrypted Comm Array Storage High-capacity Storage Unit Protection Hardened Medium Armor Plating Weapon Advanced Assault Cannon Energy Gun Beam Rifle Energy Cannon Plasma Cannon Ballistic Gun Minigun Ballistic Cannon Advanced Assault Cannon Launcher Rocket Launcher Special Weapon Molecular Deconstructor Impact Weapon Power Maul Slashing Weapon Katana Build | -11 -10 -9 -8 -7 -7 -6 -6 -6 -5 -5 -5 -5 -4 ------- Run | Yrd Mat Mat Mat Fac DSF Fac Low Low Fac Was Fac DSF Fac Slots Evolved 12 | . . 2 2 2 . 2 . . 2 . . . 2 Power 1 | . . . 1 . . . . . . . . . . Propulsion 5 | . . 1 . 1 . 1 . . 1 . . . 1 Utility 5 | . . 1 . 1 . 1 . . 1 . . . 1 Weapon 1 | . . . 1 . . . . . . . . . . Parts Attached 128 | 6 3 14 10 12 7 3 6 . 26 5 2 9 25 Power 19 | 1 . 1 2 4 . . . . 7 1 1 . 2 Engine 4 | 1 . 1 1 1 . . . . . . . . . Core 14 | . . . 1 3 . . . . 7 . 1 . 2 Reactor 1 | . . . . . . . . . . 1 . . . Propulsion 43 | 2 . 9 3 3 1 1 3 . 8 . . 6 7 Treads . | . . . . . . . . . . . . . . Leg 38 | 2 . 9 3 3 1 1 3 . 4 . . 6 6 Wheel 2 | . . . . . . . . . 2 . . . . Hover 3 | . . . . . . . . . 2 . . . 1 Flight . | . . . . . . . . . . . . . . Utility 38 | 1 1 3 2 3 3 2 1 . 5 4 1 2 10 Device 27 | . . 3 1 . 2 1 1 . 5 3 1 2 8 Storage 5 | 1 1 . . 2 . . . . . 1 . . . Processor . | . . . . . . . . . . . . . . Hackware . | . . . . . . . . . . . . . . Protection 6 | . . . 1 1 1 1 . . . . . . 2 Artifact . | . . . . . . . . . . . . . . Weapon 28 | 2 2 1 3 2 3 . 2 . 6 . . 1 6 Energy Gun 7 | 2 2 1 1 1 . . . . . . . . . Energy Cannon 4 | . . . . . 1 . . . 1 . . . 2 Ballistic Gun 3 | . . . 1 . 1 . 1 . . . . . . Ballistic Cannon 10 | . . . 1 1 1 . 1 . 3 . . 1 2 Launcher 1 | . . . . . . . . . 1 . . . . Special Weapon 1 | . . . . . . . . . 1 . . . . Impact Weapon 1 | . . . . . . . . . . . . . 1 Slashing Weapon 1 | . . . . . . . . . . . . . 1 Piercing Weapon . | . . . . . . . . . . . . . . Special Melee Weapon . | . . . . . . . . . . . . . . Unidentified Prototypes 6 | . . . . 1 . . . . 2 2 1 . . Parts Lost 70 | . . 1 3 1 . . 3 . 17 . . 3 42 Power 10 | . . . 1 1 . . 1 . 2 . . . 5 Propulsion 22 | . . . 1 . . . . . 8 . . . 13 Utility 21 | . . . . . . . 2 . 3 . . 2 14 Weapon 17 | . . 1 1 . . . . . 4 . . 1 10 Highest Loss Streak 20 | . . 1 2 1 . . 3 . 9 . . 3 20 To Critical Strikes 2 | . . . . . . . . . . . . . 2 Average Backups 15 | . 5 9 9 12 18 15 16 16 16 15 19 18 16 Power 1 | . . . . . 1 1 . 1 1 . 1 1 1 Propulsion 1 | . 3 4 4 4 1 . . 1 . 1 1 3 3 Utility 5 | . . 1 3 3 6 5 4 3 6 8 11 8 7 Weapon 6 | . 1 3 1 4 9 8 8 9 7 4 6 5 4 Tool/Special . | . . . . . . . . . . . . . . Unused Backups 16 | . . 3 2 1 1 . 2 . 2 . 1 1 3 Power 1 | . . . . . . . . . 1 . . . . Propulsion 5 | . . . 2 1 1 . . . . . . 1 . Utility 7 | . . 1 . . . . 2 . . . 1 . 3 Weapon 3 | . . 2 . . . . . . 1 . . . . Tool/Special . | . . . . . . . . . . . . . . Average Slot Usage (%) 89 | . 85 93 95 99 100 99 99 100 71 85 87 95 90 Engine 4 | . 14 11 14 4 7 6 6 6 . . . . . Core 6 | . . . . 10 7 6 6 6 10 7 4 5 5 Leg 26 | . 28 33 26 30 30 33 33 33 20 . . 25 31 Hover 1 | . . . . . . . . . 2 11 11 2 . Device 17 | . . 16 13 14 15 19 18 13 16 21 23 22 25 Storage 6 | . 14 11 9 7 7 6 6 6 5 5 5 5 4 Protection 3 | . . . 4 7 7 6 7 13 . 4 5 5 3 Energy Gun 3 | . 28 21 14 7 . . . . . . . . . Energy Cannon 3 | . . . . . 6 6 6 6 1 5 5 5 4 Ballistic Gun 2 | . . . 4 7 7 6 5 6 . . . . . Ballistic Cannon 7 | . . . 7 7 7 6 6 6 8 10 11 11 8 Peak Build Rating 116 | 6 9 17 29 48 50 53 63 63 99 86 85 104 116 Average Rating 62 | 4 6 14 21 42 47 52 56 63 81 80 84 97 98 On Entrance 49 | . 6 9 17 29 48 47 53 63 63 86 84 85 103 Naked Turns 28 | . . . . . . . . . . . . . 28 Heaviest Build 113 | 14 21 26 36 83 85 88 94 92 91 98 102 103 113 Greatest Support 173 | 20 20 33 45 72 72 85 95 95 110 56 56 150 173 Greatest Overweight (x) 27 | 1 1 . 1 1 1 1 1 . 27 1 1 4 23 Average Overweight (x) . | . . . . . 1 1 . . 1 1 1 . . Largest Inventory Capacity 20 | 8 10 10 10 20 20 20 20 20 20 20 20 20 20 Average Capacity 18 | 7 9 10 10 16 20 20 20 20 20 20 20 20 19 Most Carried 20 | . 10 10 10 16 20 17 20 20 20 20 20 20 20 Average Carried 16 | . 5 9 9 13 18 16 19 20 17 15 19 19 16 Final Capacity 20 | 8 10 10 10 20 20 20 20 20 20 20 20 20 5 Final Carried 20 | . 10 10 10 15 17 17 20 20 13 20 19 20 5 Class Distribution -------------------- 42% | Tank 18% | Scavenger-Tank 18% | Scavenger-Gunner 10% | Mutant 5% | Scavenger-Mutant 5% | Gunner Dominant Class ---------------- Mutant | -10/Materials Mutant | -9/Materials Tank | -8/Materials Scavenger-Tank | -7/Factory Tank | -7/DSF Tank | -6/Factory Tank | -6/Lower Caves Scavenger-Tank | -6/Lower Caves Scavenger-Gunner | -5/Factory Scavenger-Tank | -5/Waste Scavenger-Tank | -5/Factory Tank | -5/DSF Tank | -4/Factory Resources | -11 -10 -9 -8 -7 -7 -6 -6 -6 -5 -5 -5 -5 -4 ----------- Run | Yrd Mat Mat Mat Fac DSF Fac Low Low Fac Was Fac DSF Fac Matter Collected 8619 | 237 . 588 298 . 674 59 826 . 4016 589 . 287 1045 Remotely 16 | . . . . . . . . . . . . . 16 Salvage Created 6589 | . . 954 614 19 515 59 902 . 1354 476 . 158 1538 Parts 300 | . . 52 32 . 23 8 41 . 79 2 . 10 53 Haulers Intercepted . | . . . . . . . . . . . . . . Recyclers Shooed 7 | . . 1 . . . . . . 3 . . . 3 Parts Field Recycled . | . . . . . . . . . . . . . . Retrieved Matter . | . . . . . . . . . . . . . . Parts Self-Destructed 33 | . . . . . . . 33 . . . . . . Prevented . | . . . . . . . . . . . . . . Kills | -11 -10 -9 -8 -7 -7 -6 -6 -6 -5 -5 -5 -5 -4 ------- Run | Yrd Mat Mat Mat Fac DSF Fac Low Low Fac Was Fac DSF Fac Combat Hostiles Destroyed 126 | . . 22 11 . 13 1 17 . 37 . . 4 21 Guns 32 | . . 22 6 . 2 . 1 . 1 . . . . Cannons 78 | . . . 5 . 10 1 16 . 25 . . 4 17 AOE 4 | . . . . . . . . . 4 . . . . Classes Destroyed 16 | . . 5 4 . 2 1 1 . 3 . . . . Worker 5 | . . . 1 . . . . . 2 . . . 2 Builder 14 | . . . 1 . . . . . 4 . . . 9 Tunneler 1 | . . . . . . . . . 1 . . . . Recycler 7 | . . . . . . . . . 2 . . . 5 Operator 4 | . . 1 2 . . 1 . . . . . . . Watcher 9 | . . 3 2 1 . . . . 3 . . . . Swarmer 29 | . . 6 . . 7 . 1 . 10 . . 1 4 Grunt 36 | . . 10 8 . 2 . 5 . 6 . . . 5 Brawler 4 | . . . 1 . 1 . 1 . 1 . . . . Duelist 4 | . . . . . . . 4 . . . . . . Sentry 10 | . . 6 1 . . . 1 . 1 . . . 1 Specialist 7 | . . . . . 1 . 3 . 2 . . 1 . Hunter 19 | . . . 1 . 1 . 1 . 7 . . 1 8 Programmer 15 | . . . . . . 1 1 . 10 . . . 3 Heavy 2 | . . . . . 1 . . . . . . 1 . Surgeon 1 | . . . . . . . . . 1 . . . . Best Kill Streak 12 | . . 11 6 1 6 1 4 . 9 . . 3 12 Combat Bots Only 9 | . . 6 4 . 6 1 4 . 9 . . 3 7 Max Kills in Single Turn 5 | . . 1 1 1 1 1 2 . 2 . . 1 5 Gunslinging . | . . . . . . . . . . . . . . Exploded 2 | . . . . . . . . . 2 . . . . Melee . | . . . . . . . . . . . . . . Uniques/NPCs Destroyed . | . . . . . . . . . . . . . . Combat | -11 -10 -9 -8 -7 -7 -6 -6 -6 -5 -5 -5 -5 -4 -------- Run | Yrd Mat Mat Mat Fac DSF Fac Low Low Fac Was Fac DSF Fac Hostile Shots Fired 1442 | . . 133 69 . 52 2 143 . 397 . . 37 609 Missed 490 | . . 42 22 . 16 2 39 . 121 . . 12 236 Hits 952 | . . 91 47 . 36 . 104 . 276 . . 25 373 Melee 4 | . . . . . . . 3 . . . . . 1 Projectile 948 | . . 91 47 . 36 . 101 . 276 . . 25 372 AOE 1 | . . . . . . . . . 1 . . . . Critical Strikes 34 | . . 3 1 . 2 . 5 . 8 . . 1 14 Part Disruptions 3 | . . . . . . . 2 . . . . . 1 Actively Blocked 1 | . . . . . . . . . . . . . 1 Damage Taken 12761 | . . 780 407 . 393 . 1211 . 3746 . . 652 5572 Core 1719 | . . 106 64 . . . 147 . 214 . . 30 1158 Absorbed by Shields 726 | . . 38 85 . 148 . 364 . . . . 91 . Ignored by Resistances 3827 | . . 245 144 . 156 . 434 . 1068 . . 206 1574 Regen/Repaired (Parts) 439 | . . . . . . . . . 439 . . . . Core Remaining (%) 88 | 100 100 73 88 . 100 . . 82 . . . 75 . Volleys Fired 372 | . . 60 33 3 22 3 49 . 99 6 . 16 81 Largest 3 | . . 2 3 3 3 3 3 . 3 3 . 3 3 Hottest 189 | . . 112 149 121 145 145 157 . 149 174 . 174 189 Shots Fired 933 | . . 117 91 9 66 9 142 . 215 18 . 48 218 Gun 279 | . . 117 58 6 22 3 34 . 39 . . . . Cannon 619 | . . . 33 3 44 6 108 . 143 18 . 48 216 Launcher 11 | . . . . . . . . . 9 . . . 2 Special 24 | . . . . . . . . . 24 . . . . Kinetic 505 | . . . 40 6 44 6 93 . 138 12 . 32 134 Thermal 386 | . . 117 51 3 22 3 49 . 44 6 . 16 75 Explosive 11 | . . . . . . . . . 9 . . . 2 Electromagnetic 7 | . . . . . . . . . . . . . 7 Robot Hit Streak 32 | . . 22 23 4 10 10 32 . 13 19 . 17 8 Robot Miss Streak 8 | . . 3 3 1 2 1 2 . 3 . . 8 5 Penetration Max 1 | . . . . . . . . . . . . . 1 Secondary Targets 4 | . . 4 . . . . . . . . . . . Max Gunslinging Chain 1 | . . 1 . . . . . . . . . . . Shots Hit Robots 621 | . . 86 70 7 41 5 100 . 148 18 . 27 119 Core Hits 291 | . . 41 35 2 20 2 34 . 90 4 . 6 57 Critical Kills 7 | . . . . . 1 . . . 1 . . . 5 Critical Parts Destroyed 8 | . . . . . . . . . 2 . . . 6 Critical Strikes 50 | . . 8 1 1 2 . 1 . 22 . . . 15 Burn 11 | . . 8 . . . . . . 3 . . . . Meltdown 4 | . . . . . 1 . . . . . . . 3 Destroy 10 | . . . . . . . . . 3 . . . 7 Blast 23 | . . . 1 1 1 . 1 . 16 . . . 3 Corrupt 1 | . . . . . . . . . . . . . 1 Smash 1 | . . . . . . . . . . . . . 1 Melee Attacks 3 | . . . . . . . . . . . . . 3 Impact 1 | . . . . . . . . . . . . . 1 Slashing 2 | . . . . . . . . . . . . . 2 Piercing . | . . . . . . . . . . . . . . Sneak Attacks . | . . . . . . . . . . . . . . Combat Hostiles . | . . . . . . . . . . . . . . Follow-up Attacks . | . . . . . . . . . . . . . . Damage Inflicted 18065 | . . 1347 1278 143 998 131 2524 . 5434 543 . 840 4827 Guns 3359 | . . 1347 776 67 240 20 444 . 465 . . . . Cannons 12984 | . . . 502 76 758 111 2080 . 3641 543 . 840 4433 Explosions 1642 | . . . . . . . . . 1314 . . . 328 Melee 66 | . . . . . . . . . . . . . 66 Ramming 14 | . . . . . . . . . 14 . . . . Kinetic 9906 | . . . 621 114 591 51 1504 . 3567 334 . 532 2592 Thermal 6198 | . . 1347 657 29 407 80 1020 . 539 209 . 308 1602 Explosive 1642 | . . . . . . . . . 1314 . . . 328 Electromagnetic 239 | . . . . . . . . . . . . . 239 Impact 37 | . . . . . . . . . . . . . 37 Slashing 29 | . . . . . . . . . . . . . 29 Piercing . | . . . . . . . . . . . . . . Highest Corruption 7 | . . . . . . . . . 7 6 . . 2 Average Corruption 3 | . . . . . . . . . 3 4 . . 1 Corruption Purged 16 | . . . . . . . . . 6 6 . . 4 Corruption Blocked . | . . . . . . . . . . . . . . Effects 35 | . . . . . . . . . 31 . . . 4 Message Errors 5 | . . . . . . . . . 5 . . . . Matter Fused 10 | . . . . . . . . . 8 . . . 2 Heat Flow Errors 9 | . . . . . . . . . 9 . . . . Energy Discharges 1 | . . . . . . . . . 1 . . . . Parts Fused 1 | . . . . . . . . . 1 . . . . Data Loss (minor) 3 | . . . . . . . . . 3 . . . . Misfires 2 | . . . . . . . . . 1 . . . 1 Alerts 2 | . . . . . . . . . 2 . . . . Weapon Failures 2 | . . . . . . . . . 1 . . . 1 Overload Shots . | . . . . . . . . . . . . . . Overflow Damage 550 | . . . 15 4 5 . 39 . 345 . . 10 132 Projectiles 473 | . . . 15 4 5 . 39 . 303 . . 10 97 Explosions 58 | . . . . . . . . . 42 . . . 16 Melee 19 | . . . . . . . . . . . . . 19 Knockbacks 69 | . . . 5 . 1 1 10 . 31 . . 2 19 Impact 2 | . . . . . . . . . 1 . . . 1 Kinetic 61 | . . . 5 . 1 1 8 . 27 . . 2 17 Secondary 6 | . . . . . . . 2 . 3 . . . 1 Self-Inflicted Damage 47 | . . . . . . . . . 47 . . . . Shots 3 | . . . . . . . . . 3 . . . . Rammed . | . . . . . . . . . . . . . . Targets Rammed 2 | . . . . . . . . . 2 . . . . Kicked 2 | . . . . . . . . . 2 . . . . Crushed . | . . . . . . . . . . . . . . Highest Temperature 372 | . . 195 242 18 66 84 372 . 244 262 . 72 361 Average Temperature 92 | . . 49 61 10 37 39 128 . 84 124 . 39 120 Received Heat Transfer 2455 | . . 404 234 . 18 . 443 . 813 . . . 543 Effects 4 | . . . . . . . 1 . 1 . . . 2 Shutdowns 1 | . . . . . . . 1 . . . . . . Energy Bleed 2 | . . . . . . . . . . . . . 2 Interference 1 | . . . . . . . . . 1 . . . . Siege Activations . | . . . . . . . . . . . . . . Martial Activations . | . . . . . . . . . . . . . . Shielding Activations . | . . . . . . . . . . . . . . Robots Disrupted . | . . . . . . . . . . . . . . Combat Hostiles . | . . . . . . . . . . . . . . Robots Corrupted 1 | . . . . . . . . . . . . . 1 Combat Hostiles 1 | . . . . . . . . . . . . . 1 Parts Fried 5 | . . . . . . . . . . . . . 5 Impact Corruptions 2 | . . . . . . . . . 1 . . . 1 Robots Melted 4 | . . . . . 1 . . . . . . . 3 Combat Hostiles 4 | . . . . . 1 . . . . . . . 3 Parts Melted 20 | . . 11 3 . . . 1 . . . . . 5 Heat Transferred 12654 | . . 4033 1665 74 800 150 2000 . 1389 222 . 333 1988 Parts Sabotaged . | . . . . . . . . . . . . . . Parts Stolen . | . . . . . . . . . . . . . . Parts Stripped . | . . . . . . . . . . . . . . Power Chain Reactions . | . . . . . . . . . . . . . . Alert | -11 -10 -9 -8 -7 -7 -6 -6 -6 -5 -5 -5 -5 -4 ------- Run | Yrd Mat Mat Mat Fac DSF Fac Low Low Fac Was Fac DSF Fac Maximum Alert Level 1 | . . 1 1 . 1 . . . 1 . . 1 1 Low Security (%) 84 | 100 100 31 49 100 90 100 . . 93 100 100 47 96 Level 1 15 | . . 68 50 . 9 . . . 6 . . 52 3 Level 2 . | . . . . . . . . . . . . . . Level 3 . | . . . . . . . . . . . . . . Level 4 . | . . . . . . . . . . . . . . Level 5 . | . . . . . . . . . . . . . . High Security . | . . . . . . . . . . . . . . Max Security . | . . . . . . . . . . . . . . Sterilizations 2 | . . . . . 1 . . . . . . 1 . Peak Influence 377 | . 10 377 298 96 318 144 . . 245 35 4 224 236 Initial 144 | . . . 126 96 . 144 . . 3 35 . 1 101 Average 91 | . . 239 197 17 113 47 . . 80 3 . 154 80 Influence Increases 4112 | . 13 642 372 15 318 36 360 . 1300 . 4 224 828 Destroy 0b10 Robot/C 2640 | . . 440 220 . 260 20 340 . 740 . . 180 440 Destroy 0b10 Robot/NC 205 | . . 20 30 5 . 5 . . 65 . . . 80 Destroy Leader 528 | . . 126 64 2 40 10 20 . 166 . . 20 80 Allied During Kill 12 | . . . . . . . . . . . . 9 3 Trap Triggered on 0b10 40 | . . . 40 . . . . . . . . . . Successful Hack 52 | . 13 11 3 8 . . . . 9 . 4 . 4 Disable Machine 216 | . . . 9 . 18 . . . 126 . . 9 54 Destroy Structure 299 | . . . 6 . . 1 . . 134 . . 6 152 Partial Spotted 15 | . . . . . . . . . 15 . . . . Lose Combat Pursuer 105 | . . 45 . . . . . . 45 . . . 15 Influence Decreases 4066 | . 13 290 476 263 . 354 350 4 1183 123 . 4 1006 Entered New Map 773 | . . . 226 152 . 174 . 4 3 88 . 3 123 Time Decay 2612 | . 13 280 220 111 . 180 320 . 1010 35 . . 443 Lost Part 661 | . . 10 30 . . . 30 . 170 . . 1 420 Lost Ally 20 | . . . . . . . . . . . . . 20 Squads Dispatched 25 | . . 2 3 1 1 1 . . 12 . . 1 4 Investigation 5 | . . . . 1 . . . . 4 . . . . Extermination 7 | . . . . . . 1 . . 4 . . . 2 Reinforcement 13 | . . 2 3 . 1 . . . 4 . . 1 2 Assault . | . . . . . . . . . . . . . . Garrison . | . . . . . . . . . . . . . . Intercept . | . . . . . . . . . . . . . . Searches Triggered . | . . . . . . . . . . . . . . Construction Impeded 3 | . . . . . . . . . 1 . . . 2 Haulers Reinforced . | . . . . . . . . . . . . . . Active Scanning Responses . | . . . . . . . . . . . . . . Cargo Convoy Interrupts 2 | . . . . . . . . . 1 . . . 1 Stealth | -11 -10 -9 -8 -7 -7 -6 -6 -6 -5 -5 -5 -5 -4 --------- Run | Yrd Mat Mat Mat Fac DSF Fac Low Low Fac Was Fac DSF Fac Distress Signals 11 | . . 4 2 . . . . . 5 . . . . Communications Jammed . | . . . . . . . . . . . . . . Distress Signals . | . . . . . . . . . . . . . . Times Spotted 191 | . . 28 16 1 15 2 20 . 67 . . 6 36 Peak Tracking Total 13 | . . 13 6 1 6 1 9 . 6 . . 5 9 Tactical Retreats 6 | . . 2 . . . . . . 3 . . . 1 Traps | -11 -10 -9 -8 -7 -7 -6 -6 -6 -5 -5 -5 -5 -4 ------- Run | Yrd Mat Mat Mat Fac DSF Fac Low Low Fac Was Fac DSF Fac Traps Triggered 12 | . . . . . 5 . . . 3 . . 2 2 Indirectly . | . . . . . . . . . . . . . . Trap Hack Attempts . | . . . . . . . . . . . . . . Triggered . | . . . . . . . . . . . . . . Disarmed . | . . . . . . . . . . . . . . Reprogrammed 6 | . . . 6 . . . . . . . . . . Reused 4 | . . . 4 . . . . . . . . . . Traps Extracted . | . . . . . . . . . . . . . . Installed . | . . . . . . . . . . . . . . Triggered 4 | . . . 4 . . . . . . . . . . Machines | -11 -10 -9 -8 -7 -7 -6 -6 -6 -5 -5 -5 -5 -4 ---------- Run | Yrd Mat Mat Mat Fac DSF Fac Low Low Fac Was Fac DSF Fac Machines Disabled 26 | . . . 1 . 2 . 2 . 14 . . 1 6 Max in Single Turn 5 | . . . 1 . 1 . 2 . 4 . . 1 5 Garrison Access 2 | . . . . . . 1 . . 1 . . . . Machines Repaired . | . . . . . . . . . . . . . . Machines Dismantled . | . . . . . . . . . . . . . . Machines Sabotaged . | . . . . . . . . . . . . . . Overloaded Fab Kills . | . . . . . . . . . . . . . . Hacking | -11 -10 -9 -8 -7 -7 -6 -6 -6 -5 -5 -5 -5 -4 --------- Run | Yrd Mat Mat Mat Fac DSF Fac Low Low Fac Was Fac DSF Fac Machines Accessed 33 | . 4 3 3 3 . 3 1 . 9 . 4 . 3 Terminals 19 | . 3 3 3 2 . 2 . . 2 . 3 . 1 Fabricators 1 | . . . . . . . . . 1 . . . . Repair Stations 2 | . . . . . . . . . 2 . . . . Recycling Units 7 | . 1 . . 1 . . . . 2 . 1 . 2 Scanalyzers 1 | . . . . . . . . . 1 . . . . Garrison Access 2 | . . . . . . 1 . . 1 . . . . Total Hacks 87 | . 9 10 10 6 . 6 1 . 30 . 10 . 5 Successful 56 | . 6 4 6 4 . 6 1 . 19 . 7 . 3 Failed 31 | . 3 6 4 2 . . . . 11 . 3 . 2 Catastrophic 4 | . 1 1 . . . . . . 2 . . . . Database Lockouts . | . . . . . . . . . . . . . . Manual 1 | . . . . . . . 1 . . . . . . Terminals 53 | . 7 10 10 4 . 5 . . 7 . 8 . 2 Fabricators 2 | . . . . . . . . . 2 . . . . Repair Stations 4 | . . . . . . . . . 4 . . . . Recycling Units 15 | . 2 . . 2 . . . . 6 . 2 . 3 Scanalyzers 10 | . . . . . . . . . 10 . . . . Garrison Access 2 | . . . . . . 1 . . 1 . . . . Terminal Hacks 31 | . 4 4 6 2 . 5 1 . 3 . 5 . 1 Record 11 | . 2 1 1 1 . 1 . . 2 . 2 . 1 Prototype ID Bank 2 | . . 1 . . . 1 . . . . . . . Open Door 1 | . . . . . . . 1 . . . . . . Open DSF 2 | . . . . 1 . . . . . . 1 . . Level Access Points 1 | . . 1 . . . . . . . . . . . Branch Access Points 1 | . . 1 . . . . . . . . . . . Emergency Access Points 2 | . 1 . 1 . . . . . . . . . . Alert Level 2 | . . . 1 . . . . . . . 1 . . Locate Traps 3 | . 1 . . . . 1 . . . . 1 . . Reprogram Traps 1 | . . . 1 . . . . . . . . . . Dispatch Records 2 | . . . 1 . . . . . 1 . . . . Investigation Status 1 | . . . 1 . . . . . . . . . . Zone Layout 2 | . . . . . . 2 . . . . . . . Fabricator Hacks 2 | . . . . . . . . . 2 . . . . Load Schematic 1 | . . . . . . . . . 1 . . . . Build 1 | . . . . . . . . . 1 . . . . Repair Station Hacks 2 | . . . . . . . . . 2 . . . . Scan Component 1 | . . . . . . . . . 1 . . . . Repair 1 | . . . . . . . . . 1 . . . . Recycling Unit Hacks 10 | . 2 . . 2 . . . . 2 . 2 . 2 Report Inventory 7 | . 1 . . 1 . . . . 2 . 1 . 2 Retrieve Components 3 | . 1 . . 1 . . . . . . 1 . . Scanalyzer 9 | . . . . . . . . . 9 . . . . Insert Component 4 | . . . . . . . . . 4 . . . . Analyze 5 | . . . . . . . . . 5 . . . . Garrison Access Hacks 2 | . . . . . . 1 . . 1 . . . . Seal Access 2 | . . . . . . 1 . . 1 . . . . Unauthorized Hacks . | . . . . . . . . . . . . . . Terminals . | . . . . . . . . . . . . . . Fabricators . | . . . . . . . . . . . . . . Repair Stations . | . . . . . . . . . . . . . . Recycling Units . | . . . . . . . . . . . . . . Scanalyzers . | . . . . . . . . . . . . . . Garrison Access . | . . . . . . . . . . . . . . Data Cores Recovered 1 | . . . . . . 1 . . . . . . . Used 1 | . . . . . . 1 . . . . . . . Hacking Detections 23 | . 2 3 3 2 . 2 . . 7 . 2 . 2 Full Trace Events 6 | . 1 . . 1 . . . . 4 . . . . Feedback Events 1 | . . . . . . . . . 1 . . . . Corruption 1 | . . . . . . . . . 1 . . . . Feedback Blocked . | . . . . . . . . . . . . . . Robot Schematics Acquired . | . . . . . . . . . . . . . . Robots Built . | . . . . . . . . . . . . . . Authchips . | . . . . . . . . . . . . . . Time . | . . . . . . . . . . . . . . Total Robot Build Rating . | . . . . . . . . . . . . . . Part Schematics Acquired 4 | . . . . . . . . . 4 . . . . Parts Built 2 | . . . . . . . . . 2 . . . . Authchips . | . . . . . . . . . . . . . . Time 106 | . . . . . . . . . 106 . . . . Total Part Build Rating 12 | . . . . . . . . . 12 . . . . Parts Repaired 1 | . . . . . . . . . 1 . . . . Time 44 | . . . . . . . . . 44 . . . . Parts Recycled . | . . . . . . . . . . . . . . Recycled Matter . | . . . . . . . . . . . . . . Retrieved Matter . | . . . . . . . . . . . . . . Retrieved Components 7 | . 1 . . 3 . . . . . . 3 . . Parts Scanalyzed 4 | . . . . . . . . . 4 . . . . Part Schematics Acquired 4 | . . . . . . . . . 4 . . . . Parts Damaged . | . . . . . . . . . . . . . . Bothacking | -11 -10 -9 -8 -7 -7 -6 -6 -6 -5 -5 -5 -5 -4 ------------ Run | Yrd Mat Mat Mat Fac DSF Fac Low Low Fac Was Fac DSF Fac Used RIF Installer . | . . . . . . . . . . . . . . Robots Hacked . | . . . . . . . . . . . . . . Non-combat . | . . . . . . . . . . . . . . Combat . | . . . . . . . . . . . . . . Robot Hacks Applied . | . . . . . . . . . . . . . . Relay Couplers Released 3 | . . . . . . . . . 3 . . . . Programmers 3 | . . . . . . . . . 3 . . . . Fabnet Peak Effective % . | . . . . . . . . . . . . . . Robots Rewired . | . . . . . . . . . . . . . . Allies Hacked 1 | . . . . . . . . . . . . . 1 Hacks Repelled . | . . . . . . . . . . . . . . Allies | -11 -10 -9 -8 -7 -7 -6 -6 -6 -5 -5 -5 -5 -4 -------- Run | Yrd Mat Mat Mat Fac DSF Fac Low Low Fac Was Fac DSF Fac Total Allies 1 | . . . . . . . . . . 1 . . . Largest Group 1 | . . . . . . . . . . 1 1 1 1 Highest-Rated Group 99 | . . . . . . . . . . 99 99 99 99 Highest-Rated Ally 99 | . . . . . . . . . . 99 99 99 99 Initial Warlord ECA Mod 68 | . . . . . . 9 9 9 8 6 6 6 15 Warlord Squad Rendezvous 2 | . . . . . . . . . 2 . . . . Chimera 1 | . . . . . . . . . 1 . . . . Ghost 1 | . . . . . . . . . 1 . . . . Total Orders . | . . . . . . . . . . . . . . Ally Attacks 16 | . . . . . . . . . . . . 14 2 Total Damage 721 | . . . . . . . . . . . . 551 170 Kills 6 | . . . . . . . . . . . . 5 1 Allies Corrupted 1 | . . . . . . . . . . . . . 1 Allies Melted . | . . . . . . . . . . . . . . Intel | -11 -10 -9 -8 -7 -7 -6 -6 -6 -5 -5 -5 -5 -4 ------- Run | Yrd Mat Mat Mat Fac DSF Fac Low Low Fac Was Fac DSF Fac Active Infowar (turns) 817 | . . . . . . . . . . . . . 817 ECM 817 | . . . . . . . . . . . . . 817 Robot Analysis Total . | . . . . . . . . . . . . . . Derelict Logs Recovered 2 | . . . . . . . 2 . . . . . . Drone Launches . | . . . . . . . . . . . . . . Drone Recoveries . | . . . . . . . . . . . . . . Exploration | -11 -10 -9 -8 -7 -7 -6 -6 -6 -5 -5 -5 -5 -4 ------------- Run | Yrd Mat Mat Mat Fac DSF Fac Low Low Fac Was Fac DSF Fac Turns Passed 9555 | 47 227 676 455 627 496 484 2164 17 2531 454 90 305 982 Spaces Moved 4874 | 34 159 370 231 418 195 230 1068 14 1018 349 70 159 559 Core 88 | 3 . . . . . . . . 29 . . . 56 Treads . | . . . . . . . . . . . . . . Legs 4162 | 31 159 370 231 418 195 230 1068 14 812 . . 133 501 Wheels 471 | . . . . . . . . . 26 349 70 26 . Hover 153 | . . . . . . . . . 151 . . . 2 Flight . | . . . . . . . . . . . . . . Fastest Speed 50 | 50 120 120 120 122 197 196 124 126 115 115 115 115 50 Average Speed 157 | 115 134 120 137 139 197 196 183 126 188 115 115 120 117 Slowest Speed 1400 | 120 190 120 190 197 197 196 196 126 1400 115 115 400 1200 Overloaded Moves . | . . . . . . . . . . . . . . Propulsion Burnouts . | . . . . . . . . . . . . . . Robots Hopped . | . . . . . . . . . . . . . . Potential Cave-ins . | . . . . . . . . . . . . . . Cave-ins Triggered . | . . . . . . . . . . . . . . Exploration Rate (%) 39 | 3 32 37 26 9 95 7 98 6 33 95 2 94 18 Regions Visited 13 Branch Regions 2 Pre-discovered Areas 1 | . . . . . . . 1 . . . . . . Known Exits Taken 3 | . . 1 . 1 . . . . . . 1 . . Unknown Exits Taken 6 | 1 1 . 1 . . 1 1 1 . . . . . Scrap Searched 3 | . . . . . . . 3 . . . . . . Spaces Dug . | . . . . . . . . . . . . . . Terrain Destroyed 157 | . . . 4 . . . 4 . 66 . . 10 73 Melee . | . . . . . . . . . . . . . . Projectile 76 | . . . 4 . . . 4 . 11 . . 10 47 AOE 81 | . . . . . . . . . 55 . . . 26 Terrain Rammed . | . . . . . . . . . . . . . . Walls Destroyed . | . . . . . . . . . . . . . . Machines Disabled . | . . . . . . . . . . . . . . Actions | -11 -10 -9 -8 -7 -7 -6 -6 -6 -5 -5 -5 -5 -4 --------- Run | Yrd Mat Mat Mat Fac DSF Fac Low Low Fac Was Fac DSF Fac Total 5973 | 39 174 489 298 458 264 257 1174 13 1396 388 81 238 704 Wait 315 | . . 29 10 . 1 20 29 . 173 10 5 27 11 Move 4863 | 33 158 369 230 417 194 229 1067 13 1018 348 70 158 559 Hop . | . . . . . . . . . . . . . . Pick Up 123 | . 10 5 6 13 7 2 9 . 34 12 1 12 12 Fast Attach 20 | 6 1 3 4 . . . . . 1 . . 2 3 Attach 76 | . . 2 2 4 . 2 4 . 21 7 1 7 26 Detach 8 | . . 1 . 1 . . . . 3 2 . . 1 Swap 73 | . 2 9 6 12 7 1 7 . 20 2 1 . 6 Drop 83 | . 3 11 7 8 8 . 7 . 25 1 3 8 2 Fire 372 | . . 60 33 3 22 3 49 . 99 6 . 16 81 Melee 3 | . . . . . . . . . . . . . 3 Ram . | . . . . . . . . . . . . . . Kick 2 | . . . . . . . . . 2 . . . . Crush . | . . . . . . . . . . . . . . Escape Stasis 33 | . . . . . 25 . . . . . . 8 . Rewire 2 | . . . . . . . 2 . . . . . . Trap . | . . . . . . . . . . . . . . Miscellaneous . | . . . . . . . . . . . . . . Route ------- -11/Scrapyard -10/Materials -9/Materials (discovered 6 exits: *Mat x3 / *Min x2 / Sto) -8/Materials -7/Factory -7/DSF -6/Factory -6/Lower Caves -6/Lower Caves -5/Factory -5/Waste -5/Factory -5/DSF -4/Factory History --------- Turn | Location | Event 25 | -11/Scrapyard | Discovered new exit (range 15) 48 | -11/Scrapyard | Entered Materials 246 | -10/Materials | Discovered new exit (range 16) 275 | -10/Materials | Entered another Materials area 275 | -9/Materials | Evolved 2 slots: Propulsion x1, Utility x1 303 | -9/Materials | Build established: Mutant 399 | -9/Materials | Discovered new exit (range 12) 402 | -9/Materials | Identified exit to Mines 402 | -9/Materials | Identified exit to Storage 402 | -9/Materials | Identified exit to Materials 951 | -9/Materials | Entered another Materials area 951 | -8/Materials | Evolved 2 slots: Power x1, Weapon x1 1386 | -8/Materials | Discovered new exit (range 15) 1406 | -8/Materials | Entered Factory 1406 | -7/Factory | Evolved 2 slots: Propulsion x1, Utility x1 1491 | -7/Factory | Build established: Scavenger-Tank 2031 | -7/Factory | Identified exit to DSF 2033 | -7/Factory | Entered DSF 2083 | -7/DSF | Additional patrols routed to DSF 2175 | -7/DSF | Discovered new exit (range 16) 2361 | -7/DSF | Build established: Tank 2494 | -7/DSF | Sterilization system engaged 2514 | -7/DSF | Ambient heat levels rising (+10) 2529 | -7/DSF | Ambient heat levels rising (+10) 2529 | -7/DSF | Entered Factory 2529 | -6/Factory | Evolved 2 slots: Propulsion x1, Utility x1 2986 | -6/Factory | Discovered new exit (range 14) 3013 | -6/Factory | Entered Lower Caves 3020 | -6/Lower Caves | Met a Warlord Commander 3021 | -6/Lower Caves | Learned location of Warlord (-5) 3022 | -6/Lower Caves | Warlord Commander delivered Encrypted Comm Array 3031 | -6/Lower Caves | Found Encrypted Comm Array 3071 | -6/Lower Caves | Learned Factory garrison access intel 3145 | -6/Lower Caves | Found Prototype Device 4418 | -6/Lower Caves | Acquired the password to a Derelict Tinkerer's latest research 4435 | -6/Lower Caves | Found Prototype Special Weapon 4495 | -6/Lower Caves | Learned Factory non-interactive machine intel 4764 | -6/Lower Caves | Attracted the attention of an 0b10 outpost 4883 | -6/Lower Caves | Lost 3 parts (1p2u) 5044 | -6/Lower Caves | Caught by Unaware searching for contraband prototypes 5162 | -6/Lower Caves | Discovered new exit (range 13) 5177 | -6/Lower Caves | Entered another Lower Caves area 5183 | -6/Lower Caves | Discovered new exit (range 12) 5194 | -6/Lower Caves | Entered Factory 5194 | -5/Factory | Evolved 2 slots: Propulsion x1, Utility x1 5195 | -5/Factory | Loaded intel: 206 non-interactive machine locations 5196 | -5/Factory | Loaded intel: 3 garrison access locations 5199 | -5/Factory | Identified Molecular Deconstructor 5202 | -5/Factory | Identified Heart of Steel 5322 | -5/Factory | Joined by Warlord Chimera squad 5577 | -5/Factory | Build established: Scavenger-Gunner 5624 | -5/Factory | P-70 Sage assimilated allied T5-2QN(m) 5795 | -5/Factory | Destroyed 9 combat bots 5856 | -5/Factory | Joined by Warlord Ghost squad 6123 | -5/Factory | Repaired Imp. Titanium Leg 6182 | -5/Factory | Fabricated Neutrino Core? 6448 | -5/Factory | Discovered new exit (range 14) 6727 | -5/Factory | Cargo convoy interrupted 6782 | -5/Factory | Lost 9 parts (2p5n1u1w) 7028 | -5/Factory | Build established: Gunner 7725 | -5/Factory | Sucked down chute 7725 | -5/Factory | Entered Waste 7725 | -5/Waste | The area was eerily silent 7735 | -5/Waste | Heart of Steel transformed into Warbot 8033 | -5/Waste | Build established: Scavenger-Tank 8148 | -5/Waste | Discovered new exit (range 13) 8179 | -5/Waste | Entered Factory 8179 | -5/Factory | Accompanied by 1 ally (Warbot) 8264 | -5/Factory | Identified exit to DSF 8269 | -5/Factory | Entered DSF 8269 | -5/DSF | Accompanied by 1 ally (Warbot) 8300 | -5/DSF | Additional patrols routed to DSF 8324 | -5/DSF | Lost 3 parts (2u1w) 8422 | -5/DSF | Sterilization system engaged 8426 | -5/DSF | Discovered new exit (range 16) 8442 | -5/DSF | Ambient heat levels rising (+10) 8457 | -5/DSF | Ambient heat levels rising (+10) 8472 | -5/DSF | Ambient heat levels rising (+10) 8487 | -5/DSF | Ambient heat levels rising (+10) 8502 | -5/DSF | Ambient heat levels rising (+10) 8517 | -5/DSF | Ambient heat levels rising (+10) 8532 | -5/DSF | Ambient heat levels rising (+10) 8547 | -5/DSF | Ambient heat levels rising (+10) 8562 | -5/DSF | Ambient heat levels rising (+10) 8574 | -5/DSF | Entered Factory 8574 | -4/Factory | Accompanied by 1 ally (Warbot) 8574 | -4/Factory | Evolved 2 slots: Propulsion x1, Utility x1 8641 | -4/Factory | Build established: Tank 9308 | -4/Factory | Lost 8 parts (1p3n2u2w) 9380 | -4/Factory | Lost 4 parts (3n1u) 9447 | -4/Factory | Lost 8 parts (2p1n3u2w) 9456 | -4/Factory | Destroyed 7 combat bots 9514 | -4/Factory | Spotted Striker 9515 | -4/Factory | Cargo convoy interrupted 9520 | -4/Factory | Core integrity fell below 50% 9529 | -4/Factory | Core integrity fell below 20% 9556 | -4/Factory | Destroyed by Striker with Plasma Lance Last Messages --------------- 09529_ X-77 Beamer IFF system glitched. 09529_ U-05 Engineer lays Concrete. 09529_ M-36 Artificer repairs Striker. 09530_ U-05 Engineer lays Concrete. 09531_ R-10 Processor collects Welding Torch. 09531_ Slug penetrates Wall. 09531_ K-01 Serf collects debris. 09531_ Penetrated by Slug. 09532_ Slug penetrates Striker. 09532_ K-01 Serf collects debris. 09532_ U-05 Engineer lays Concrete. 09533_ System corrupted: Matter fused (-6). 09533_ U-05 Engineer builds a Door. 09533_ Acquired 3 matter. 09534_ R-10 Processor collects Welding Torch. 09534_ K-01 Serf collects debris. 09534_ U-05 Engineer builds a Wall. 09536_ U-05 Engineer destroyed. 09538_ R-10 Processor collects Wheel. 09542_ Acquired 3 matter. Map ----- +----------------------------------------------------+ | ????# """" " ??????????????? | | ????# """" " # ??????????????? | | ????# """" # ??????????????? | | ????# """" # ??????????????? | | ????# %# ####???????????????? | | ????# = # # ????????????????? | | ????####### "#"### # [????????????????? | | ??????????#### #?#= ???????????????? | | ?????????????###?# # ????????????????? | | ?????????????????# % ???????????????? | | ?????????????????# "????????????????? | | ?????????????????# "????????????????? | | ??????????######## # ???????????????? | | ??????????# # #????????????????? | | ??????????# ###????????????????? | | ??????????# ##?????????????????? | | ########### ##?????????????????? | | # #??????????????????? | | # ### # T# #??????????????????? | | # #?? ##### #??????????????????? | | """ """ # #??##???# #??????????????????? | | = """ """ # #???????# #??????????????????? | | """ """ + #???????# #??????????????????? | | # #???????# #??????????????????? | | """ """ # #???????# #??????????????????? | | """ """ ##### #???????#@k #??????????????????? | | """ """ #???# #########K w#??????????????????? | | [ #???? ## #??????????????????? | | #???? ## #??????????????????? | | #########+##### ## ##############?????? | | ?# + ## # #?????? | | ?#""" # ## # #?????? | | ?#"Y # ##### #######+# """" #?????? | | ?#""" # #???# ## # """" #?## ## | | ?# # ##### #???# ## # """" #?# | | ?# = # #?????#???# ## # """" #?# | | ?######## #?????????# ## ""# """" #?# | | ????????# #?????????# ## ""# """" #?# """ | | ????????# #?????????# ## Y"# #?# """ | | ???????##+#####+##### ## ""# #?# """ | | ???????# [ # ## ""# #?# | | ???????# ! # ## # = #?# | | ???????# """ """ # #######+######+########## | | ???????# """ """ # % % | | ???????# """ """ # % | | ???????# + % % | | ???????# """ """ # % % | | ???????# """ """ # % % | | ???????# """ """ # ##########+#######"##"## | | ???????# # #????????????????##### | +----------------------------------------------------+ Best States ------------- Heat Dissipation 101 Energy Generation 35 Energy Capacity 415 Matter Stores 300 Matter Capacity 300 Sight Range 16 Terrain Scan Density 10 ECM Strength 1 Power Amplification 30 EM Shielding 2 Armor Coverage 450 Resistance: KI 20 Resistance: TH 20 Resistance: EX 20 Resistance: EM 20 Resistance: I 20 Resistance: S 20 Resistance: P 20 Evasion (%) 82 Energy Filtering 30 Offensive Hacking 10 Item Schematics ----------------- Neutrino Core | -5/Factory | Scanalyzed Adv. Heat Sink | -5/Factory | Scanalyzed Hrd. Medium Armor Plating | -5/Factory | Scanalyzed Matter Compressor | -5/Factory | Scanalyzed Robot Schematics ------------------ None Fabricated ------------ Neutrino Core | x2 | -5/Factory Repaired ---------- Imp. Titanium Leg | 8% | -5/Factory Alien Tech Used ----------------- None Achievements -------------- None Challenges ------------ None Game ------ Seed ArcSuperchargedProjector Manual? 0 Play Time 02:12:27 Cumulative 337.2 hours Start 2025.09.23 @ 19:09:23 End 2025.09.27 @ 18:27:57 Sessions 7 Manual Loads 0 Difficulty Adventurer Special Mode None Game No. 273 Rogue 0 Adventurer 210 Explorer 63 Win Type - Total 0 Types 0/0/0/0/0/0/0/0/0/0 Lore% 54 Gallery% 60 Achievement% 52 Wizard Run 0 Options --------- Layout 1 ASCII 0 Keyboard 0 Movement Mouse Keybinds 0 Fullscreen 2 Font 32/SmallcapsGlow Map View 50x35 Zoom Use 0% Tactical HUD 1 Map Filters NONE Filters NONE Steam 1 RUN: a331b0a2-62b5-4070-a50a-b0a5d8248cda